[Event "Karel Janecek Open 2024"]
[Site "Prague"]
[Date "2024.03.01"]
[Round "3.16"]
[White "Isik, Alparslan"]
[Black "Novotny, Michal"]
[Result "1-0"]
[ECO "A11"]
[WhiteElo "2452"]
[BlackElo "2260"]
[Annotator "TA"]
[PlyCount "119"]
[EventDate "2024.02.22"]
[EventType "swiss"]
[EventCountry "CZE"]
[SourceTitle "playchess.com"]
[Source "ChessBase"]
[SourceQuality "1"]
[TimeControl "40/5400+30:1800+30"]

{[%evp 11,119,5,12,2,32,28,72,96,181,160,160,112,83,77,98,106,91,89,97,95,99,89,114,79,93,74,137,137,135,136,136,133,172,163,174,175,172,185,181,171,172,173,172,167,160,145,170,168,170,170,167,117,160,163,167,157,185,170,195,199,263,268,267,265,256,225,935,934,949,944,950,958,932,934,931,926,917,807,672,545,610,547,659,591,679,803,1059,1079,1186,1075,1013,964,1594,1565,1566,1545,1680,1531,1616,691,1280,743,1801,1693,2041,2024,8344,8235,29973,29972]} 1. c4 {[%emt 0:00:02]} c6 {[%emt 0:05:46]} 2. Nf3 {[%emt 0:00:11]} d5 {[%emt 0:00:03]} 3. e3 {[%emt 0:00:11]} Nf6 {[%emt 0:00:11]} 4. Nc3 {[%emt 0:00:07]} e6 {[%emt 0:00:48]} 5. b3 {[%emt 0:00:09]} Nbd7 {[%emt 0:00:15]} 6. Bb2 {[%emt 0:00:13]} Bd6 {[%emt 0:00:25]} 7. Qc2 {[%emt 0:00:09]} e5 {[%emt 0:02:57]} 8. cxd5 {[%emt 0:01:14]} cxd5 {[%emt 0:00:05]} 9. Nb5 {[%emt 0:00:48] White is better.} Qb6 {[%emt 0:00:18]} (9... Bb8 $16) 10. Nxd6+ $18 {[%emt 0:04:41]} Qxd6 {[%emt 0:09:14]} 11. Be2 {[%emt 0:02:40]} (11. a4 $142) 11... O-O $16 {[%emt 0:01:05]} 12. O-O {[%emt 0:08:26]} Re8 {[%emt 0:27:09]} 13. Rac1 {[%emt 0:05:52]} Nf8 {[%emt 0:07:02]} 14. Qc7 {[%emt 0:03:45]} Qxc7 {[%emt 0:13:41]} 15. Rxc7 {[%emt 0:00:07]} N6d7 {[%emt 0:01:51]} 16. Rfc1 {[%emt 0:30:25][%cal Of3e5]} f6 {[%emt 0:02:05]} 17. d4 {[%emt 0:01:29] Threatens to win with dxe5. White is much more active.} e4 {[%emt 0:00:50]} 18. Nd2 {[%emt 0:00:12][%cal Bf3d2,Bd2b1,Bb1c3][%mdl 32]} f5 {[%emt 0:07:43]} ({Better is} 18... Ne6) 19. Bb5 $1 {[%emt 0:08:32]} a6 {[%emt 0:00:52] [#]} 20. Bxd7 {[%emt 0:00:05]} Nxd7 {[%emt 0:00:27]} 21. Ba3 {[%emt 0:00:10]} a5 {[%emt 0:10:49]} 22. Nb1 {[%emt 0:07:00]} a4 {[%emt 0:05:37] Black is weak on the dark squares} 23. bxa4 {[%emt 0:00:26]} Nb6 {[%emt 0:00:06][%cal Ob6c4]} 24. Nc3 {[%emt 0:00:08]} Be6 {[%emt 0:00:26]} 25. Rxb7 {[%emt 0:01:35]} Nxa4 {[%emt 0:00:43]} 26. Nxa4 {[%emt 0:02:54]} Rxa4 {[%emt 0:00:01]} 27. Bd6 {[%emt 0:00:09] Rcc7 would now be deadly.} Rc8 {[%emt 0:01:54]} 28. Rxc8+ {[%emt 0:06:52]} Bxc8 {[%emt 0:00:01][%mdl 4096] Endgame. KRB-KRB} 29. Rb8 {[%emt 0:00:11]} Rc4 {[%emt 0:00:07][%cal Rc4c1] [#]} 30. h4 $1 {[%emt 0:00:05] Hoping for Bc5.} Kf7 {[%emt 0:00:10]} 31. Ra8 {[%emt 0:00:13]} ({White should play} 31. a4 $18) 31... Ke6 {[%emt 0:00:50]} 32. Be5 {[%emt 0:01:42]} g6 {[%emt 0:00:12]} 33. a4 {[%emt 0:00:18]} Rc6 {[%emt 0:02:01]} 34. Kh2 {[%emt 0:01:57]} h6 {[%emt 0:00:20]} 35. Bf4 {[%emt 0:00:11]} g5 {[%emt 0:01:05]} (35... h5 $142 36. Ra7 Bd7) 36. hxg5 $18 {[%emt 0:00:15]} hxg5 {[%emt 0:00:01]} 37. Bxg5 {[%emt 0:00:08]} Kd7 {[%emt 0:00:05]} 38. Ra7+ {[%emt 0:01:55]} Rc7 $2 {[%emt 0:00:01]} (38... Kd6 39. Rg7 Rc2 40. Bf4+ Ke6) 39. Rxc7+ {[%emt 0:00:47]} Kxc7 {[%emt 0:00:02] KB-KB} 40. Kg3 {[%emt 0:00:12]} Kd6 {[%emt 0:00:12]} 41. Kf4 {[%emt 0:30:05]} Ke6 {[%emt 0:30:03]} 42. a5 {[%emt 0:01:52]} Ba6 {[%emt 0:01:25]} 43. Bh6 {[%emt 0:10:21]} Bf1 {[%emt 0:01:01]} 44. Bf8 {[%emt 0:01:41]} Be2 {[%emt 0:00:36]} 45. Bb4 {[%emt 0:00:00]} Kf6 {[%emt 0:00:00]} 46. Bd6 {[%emt 0:00:00]} Ba6 {[%emt 0:00:00]} 47. Be5+ {[%emt 0:00:00]} Ke6 {[%emt 0:00:00]} 48. Kg5 {[%emt 0:00:00]} Be2 {[%emt 0:00:00]} 49. Kg6 {[%emt 0:00:00]} Bf1 {[%emt 0:00:00]} 50. Bf4 {[%emt 0:00:00]} Ba6 {[%emt 0:00:00]} 51. Kg7 {[%emt 0:00:00]} Bc8 {[%emt 0:00:00]} 52. Kf8 {[%emt 0:00:00] Intending Ke8 and mate.} Kd7 {[%emt 0:00:00]} 53. Kf7 {[%emt 0:00:00]} Kc6 {[%emt 0:00:00]} 54. Kf6 {[%emt 0:00:00]} Kb5 {[%emt 0:00:00]} 55. Bc7 {[%emt 0:00:00]} Kc6 {[%emt 0:00:00]} 56. Bb6 {[%emt 0:00:00]} Kb5 {[%emt 0:00:05]} 57. Ke5 {[%emt 0:00:00]} Kc4 {[%emt 0:00:03]} 58. Bd8 {[%emt 0:00:00]} Kd3 {[%emt 0:01:51]} 59. Kxd5 {[%emt 0:00:00] White threatens Bg5 and mate.} Ke2 {[%emt 0:00:24]} 60. Bg5 {[%emt 0:00:00] Weighted Error Value: White=0.09 (flawless) /Black=0.20 (precise) .  Mistake:       	White=2     	Black=4      Inaccurate:     	White=1     	Black=4      OK:         	White=17    	Black=11     Best:        	White=3     	Black=2      Strong:       	White=1     	---} 1-0

[Event "Karel Janecek Open 2024"]
[Site "Prague"]
[Date "2024.03.01"]
[Round "3.17"]
[White "Belenkaya, Dina"]
[Black "Stefan, Iulia-Cristiana"]
[Result "1/2-1/2"]
[ECO "D31"]
[WhiteElo "2202"]
[BlackElo "1772"]
[Annotator "RC"]
[PlyCount "107"]
[EventDate "2024.02.22"]
[EventType "swiss"]
[EventCountry "CZE"]
[SourceTitle "playchess.com"]
[Source "ChessBase"]
[SourceQuality "1"]
[TimeControl "40/5400+30:1800+30"]

1. d4 {[%emt 0:00:04]} d5 {[%emt 0:00:11]} 2. c4 {[%emt 0:00:31]} e6 {[%emt 0:00:06]} 3. Nc3 {[%emt 0:00:09]} h6 {[%emt 0:00:08]} 4. cxd5 {[%emt 0:04:59]} exd5 {[%emt 0:00:07]} 5. Bf4 {[%emt 0:00:49]} Nf6 {[%emt 0:01:27]} 6. e3 {[%emt 0:01:11]} Bd6 {[%emt 0:00:49]} 7. Bg3 {[%emt 0:02:19]} c6 {[%emt 0:03:01]} 8. Bd3 {[%emt 0:01:04]} O-O {[%emt 0:01:19]} 9. Qc2 {[%emt 0:00:21]} Qe7 {[%emt 0:13:01]} 10. Nge2 {[%emt 0:01:27]} Re8 {[%emt 0:10:22]} 11. Bh4 {[%emt 0:02:06]} Qe6 {[%emt 0:02:37]} 12. O-O-O {[%emt 0:02:43]} b5 {[%emt 0:04:08]} 13. Nf4 {[%emt 0:09:34]} Bxf4 {[%emt 0:06:59]} 14. exf4 {[%emt 0:00:06]} Qd6 {[%emt 0:01:11]} 15. Bg3 {[%emt 0:08:52]} Na6 {[%emt 0:09:31]} 16. f5 {[%emt 0:01:26]} Qf8 {[%emt 0:01:54]} 17. Qd2 {[%emt 0:05:51]} Nb4 {[%emt 0:10:46]} 18. Bb1 {[%emt 0:02:52]} Ne4 {[%emt 0:05:16]} 19. Nxe4 {[%emt 0:04:19]} dxe4 {[%emt 0:00:05]} 20. f6 {[%emt 0:00:31]} Bf5 {[%emt 0:04:25]} 21. fxg7 {[%emt 0:02:15]} Kxg7 {[%emt 0:00:21]} 22. Bf4 {[%emt 0:11:50]} Kh7 {[%emt 0:00:57]} 23. g4 {[%emt 0:08:12]} Bxg4 {[%emt 0:04:23]} 24. Rde1 {[%emt 0:02:39]} Bf5 {[%emt 0:00:46]} 25. Rhg1 {[%emt 0:07:59]} Rad8 {[%emt 0:03:22]} 26. a3 {[%emt 0:08:04]} Nd3+ {[%emt 0:02:18]} 27. Bxd3 {[%emt 0:00:05]} exd3 {[%emt 0:00:04]} 28. Be3 {[%emt 0:01:42]} Qd6 {[%emt 0:02:06]} 29. Rg3 {[%emt 0:00:54]} Rg8 {[%emt 0:01:29]} 30. Qc3 {[%emt 0:03:43]} Rde8 {[%emt 0:03:07]} 31. Kd2 {[%emt 0:00:20]} Qd5 {[%emt 0:01:28]} 32. Reg1 {[%emt 0:03:45]} Rg6 {[%emt 0:01:03]} 33. Kc1 {[%emt 0:00:40]} Qa2 {[%emt 0:02:29]} 34. Re1 {[%emt 0:00:24]} Qd5 {[%emt 0:00:41]} 35. Kd2 {[%emt 0:00:25]} Rgg8 {[%emt 0:01:08]} 36. Kc1 {[%emt 0:01:39]} Rg6 {[%emt 0:01:15]} 37. Qb4 {[%emt 0:02:20]} Qc4+ {[%emt 0:02:55]} 38. Qc3 {[%emt 0:00:31]} Qd5 {[%emt 0:00:16]} 39. Qb4 {[%emt 0:00:00]} Qc4+ {[%emt 0:00:33]} 40. Qxc4 {[%emt 0:00:00]} bxc4 {[%emt 0:00:06]} 41. Rf3 {[%emt 0:28:39]} Be6 {[%emt 0:31:24]} 42. Rf4 {[%emt 0:01:40]} Rg4 {[%emt 0:00:00]} 43. Rf6 {[%emt 0:00:00]} Rg6 {[%emt 0:00:00]} 44. Rf3 {[%emt 0:00:00]} a6 {[%emt 0:00:00]} 45. h3 {[%emt 0:00:00]} Reg8 {[%emt 0:00:00]} 46. Kd2 {[%emt 0:00:00]} Rb8 {[%emt 0:00:00]} 47. Kc1 {[%emt 0:00:00]} Rbg8 {[%emt 0:00:00]} 48. Rf4 {[%emt 0:00:00]} Rg1 {[%emt 0:00:00]} 49. Rxg1 {[%emt 0:00:00]} Rxg1+ {[%emt 0:00:00]} 50. Kd2 {[%emt 0:00:00]} Kg6 {[%emt 0:00:00]} 51. Re4 {[%emt 0:00:00]} Rh1 {[%emt 0:00:00]} 52. h4 {[%emt 0:00:00]} Bd5 {[%emt 0:00:00]} 53. Rf4 {[%emt 0:00:00]} Be6 {[%emt 0:00:22]} 54. Re4 {[%emt 0:00:00]} 1/2-1/2

[Event "Karel Janecek Open 2024"]
[Site "Prague"]
[Date "2024.03.01"]
[Round "3.18"]
[White "Mathisen, Pal Strande"]
[Black "Botez, Alexandra"]
[Result "0-1"]
[ECO "C02"]
[WhiteElo "1639"]
[BlackElo "1977"]
[Annotator "RC"]
[PlyCount "117"]
[EventDate "2024.02.22"]
[EventType "swiss"]
[EventCountry "CZE"]
[SourceTitle "playchess.com"]
[Source "ChessBase"]
[SourceQuality "1"]
[TimeControl "40/5400+30:1800+30"]

1. e4 {[%emt 0:00:11]} e6 {[%emt 0:00:06]} 2. d4 {[%emt 0:00:42]} d5 {[%emt 0:00:07]} 3. e5 {[%emt 0:01:13]} c5 {[%emt 0:00:08]} 4. c3 {[%emt 0:00:10]} Nc6 {[%emt 0:00:09]} 5. Nf3 {[%emt 0:00:10]} Bd7 {[%emt 0:00:09]} 6. Bd3 {[%emt 0:00:51]} cxd4 {[%emt 0:00:34]} 7. cxd4 {[%emt 0:00:11]} Qb6 {[%emt 0:00:13]} 8. O-O {[%emt 0:00:18]} Nxd4 {[%emt 0:00:40]} 9. Ng5 {[%emt 0:08:20]} Nc6 {[%emt 0:04:31]} 10. Re1 {[%emt 0:01:25]} Nh6 {[%emt 0:11:06]} 11. Nc3 {[%emt 0:29:49]} Be7 {[%emt 0:05:11]} 12. Bf4 {[%emt 0:18:31]} Bxg5 {[%emt 0:07:58]} 13. Bxg5 {[%emt 0:00:29]} Nb4 {[%emt 0:03:34]} 14. Bb1 {[%emt 0:02:50]} Ng8 {[%emt 0:06:31]} 15. Qg4 {[%emt 0:11:47]} h5 {[%emt 0:01:47]} 16. Qh4 {[%emt 0:02:08]} Nc6 {[%emt 0:04:02]} 17. Bd3 {[%emt 0:07:02]} a6 {[%emt 0:01:42]} 18. Na4 {[%emt 0:08:04]} Qb4 {[%emt 0:03:13]} 19. Rac1 {[%emt 0:01:49]} Qxh4 {[%emt 0:00:42]} 20. Bxh4 {[%emt 0:00:09]} Nb4 {[%emt 0:12:42]} 21. Nc5 {[%emt 0:01:55]} Nxd3 {[%emt 0:01:11]} 22. Nxd3 {[%emt 0:00:29]} Bc6 {[%emt 0:01:35]} 23. f4 {[%emt 0:00:20]} Nh6 {[%emt 0:00:19]} 24. Nb4 {[%emt 0:01:39]} Nf5 {[%emt 0:00:34]} 25. Bf2 {[%emt 0:00:12]} Kd7 {[%emt 0:00:16]} 26. Red1 {[%emt 0:00:31]} Rhc8 {[%emt 0:00:45]} 27. Bb6 {[%emt 0:00:24]} Bb5 {[%emt 0:01:07]} 28. b3 {[%emt 0:01:09]} Rxc1 {[%emt 0:09:06]} 29. Rxc1 {[%emt 0:00:02]} Bc6 {[%emt 0:00:10]} 30. Nc2 {[%emt 0:00:21]} g5 {[%emt 0:03:20]} 31. fxg5 {[%emt 0:00:52]} Rg8 {[%emt 0:00:11]} 32. Ne3 {[%emt 0:00:28]} Rxg5 {[%emt 0:00:35]} 33. Nxf5 {[%emt 0:00:01]} Rxf5 {[%emt 0:01:06]} 34. Re1 {[%emt 0:00:12]} f6 {[%emt 0:01:32]} 35. Bd4 {[%emt 0:00:36]} fxe5 {[%emt 0:03:47]} 36. Bxe5 {[%emt 0:00:18]} Bb5 {[%emt 0:03:28]} 37. g3 {[%emt 0:00:38]} Bd3 {[%emt 0:03:02]} 38. Re3 {[%emt 0:00:48]} Be4 {[%emt 0:00:46]} 39. Bb2 {[%emt 0:00:43]} e5 {[%emt 0:01:07]} 40. h3 {[%emt 0:00:14]} Ke6 {[%emt 0:01:14]} 41. a3 {[%emt 0:31:19]} Kd6 {[%emt 0:40:03]} 42. b4 {[%emt 0:00:00]} Bc2 {[%emt 0:00:00]} 43. Kg2 {[%emt 0:00:00]} d4 {[%emt 0:00:00]} 44. g4 {[%emt 0:00:00]} Rf4 {[%emt 0:00:00]} 45. Re2 {[%emt 0:00:00]} Be4+ {[%emt 0:00:00]} 46. Kg3 {[%emt 0:00:00]} d3 {[%emt 0:00:00]} 47. Rd2 {[%emt 0:00:00]} hxg4 {[%emt 0:00:00]} 48. hxg4 {[%emt 0:00:00]} Rf3+ {[%emt 0:00:00]} 49. Kh4 {[%emt 0:00:00]} Rf8 {[%emt 0:00:00]} 50. Kg5 {[%emt 0:00:00]} Rc8 {[%emt 0:00:00]} 51. Kf6 {[%emt 0:00:00]} Rf8+ {[%emt 0:00:00]} 52. Kg7 {[%emt 0:01:05]} Rf4 {[%emt 0:00:00]} 53. g5 {[%emt 0:00:34]} Ke6 {[%emt 0:00:00]} 54. Rh2 {[%emt 0:01:22]} Rf7+ {[%emt 0:00:00]} 55. Kg8 {[%emt 0:00:59]} Rc7 {[%emt 0:00:00]} 56. Rf2 {[%emt 0:01:36]} Bf5 {[%emt 0:00:00]} 57. g6 {[%emt 0:00:26]} Bxg6 {[%emt 0:00:00]} 58. Rg2 {[%emt 0:02:20]} Bf7+ {[%emt 0:00:00]} 59. Kf8 {[%emt 0:00:42]} 0-1

[Event "Karel Janecek Open 2024"]
[Site "Prague"]
[Date "2024.03.01"]
[Round "3.19"]
[White "Hurtak, Otto"]
[Black "Botez, Andrea"]
[Result "1-0"]
[ECO "A36"]
[WhiteElo "1958"]
[BlackElo "1709"]
[Annotator "RC"]
[PlyCount "93"]
[EventDate "2024.02.22"]
[EventType "swiss"]
[EventCountry "CZE"]
[SourceTitle "playchess.com"]
[Source "ChessBase"]
[SourceQuality "1"]
[TimeControl "40/5400+30:1800+30"]

1. c4 {[%emt 0:00:04]} Nf6 {[%emt 0:02:21]} 2. Nc3 {[%emt 0:00:18]} g6 {[%emt 0:00:22]} 3. g3 {[%emt 0:00:25]} Bg7 {[%emt 0:00:13]} 4. Bg2 {[%emt 0:00:07]} d6 {[%emt 0:00:10]} 5. e4 {[%emt 0:00:44]} O-O {[%emt 0:00:23]} 6. Nge2 {[%emt 0:00:10]} c5 {[%emt 0:03:55]} 7. O-O {[%emt 0:00:30]} Nc6 {[%emt 0:00:34]} 8. d3 {[%emt 0:00:39]} Rb8 {[%emt 0:00:51]} 9. h3 {[%emt 0:04:36]} a6 {[%emt 0:01:15]} 10. f4 {[%emt 0:01:58]} Nd7 {[%emt 0:16:12]} 11. a4 {[%emt 0:07:56]} e6 {[%emt 0:07:57]} 12. Kh2 {[%emt 0:04:20]} Qe7 {[%emt 0:14:18]} 13. Be3 {[%emt 0:04:10]} f5 {[%emt 0:06:02]} 14. Qd2 {[%emt 0:03:34]} Na5 {[%emt 0:08:30]} 15. Rab1 {[%emt 0:04:59]} b6 {[%emt 0:05:50]} 16. exf5 {[%emt 0:15:30]} gxf5 {[%emt 0:00:37]} 17. b3 {[%emt 0:06:16]} Bb7 {[%emt 0:01:33]} 18. d4 {[%emt 0:02:14]} Bxg2 {[%emt 0:04:42]} 19. Kxg2 {[%emt 0:00:08]} cxd4 {[%emt 0:00:24]} 20. Nxd4 {[%emt 0:03:10]} Nc5 {[%emt 0:05:12]} 21. Qc2 {[%emt 0:03:34]} Rbc8 {[%emt 0:10:44]} 22. Bg1 {[%emt 0:03:20]} Ncxb3 {[%emt 0:06:03]} 23. Nxb3 {[%emt 0:01:32]} Rxc4 {[%emt 0:01:53]} 24. Rf3 {[%emt 0:15:00]} Rfc8 {[%emt 0:00:28]} 25. Nxa5 {[%emt 0:02:21]} Rxc3 {[%emt 0:00:52]} 26. Rxc3 {[%emt 0:00:17]} Rxc3 {[%emt 0:00:07]} 27. Qe2 {[%emt 0:02:15]} bxa5 {[%emt 0:00:23]} 28. Rb8+ {[%emt 0:00:21]} Bf8 {[%emt 0:00:07]} 29. Bd4 {[%emt 0:02:52]} Rc6 {[%emt 0:00:35]} 30. Qh5 {[%emt 0:01:15]} Rc2+ {[%emt 0:01:32]} 31. Kg1 {[%emt 0:01:11]} Rc1+ {[%emt 0:00:07]} 32. Kg2 {[%emt 0:01:23]} e5 {[%emt 0:01:08]} 33. fxe5 {[%emt 0:01:49]} Rc2+ {[%emt 0:00:41]} 34. Kh1 {[%emt 0:01:25]} dxe5 {[%emt 0:00:23]} 35. Be3 {[%emt 0:01:25]} f4 {[%emt 0:00:53]} 36. gxf4 {[%emt 0:01:35]} Qg7 {[%emt 0:00:31]} 37. Qf3 {[%emt 0:01:02]} e4 {[%emt 0:00:34]} 38. Qxe4 {[%emt 0:01:50]} Rc7 {[%emt 0:00:34]} 39. Qe6+ {[%emt 0:01:35]} Rf7 {[%emt 0:00:10]} 40. Qg4 {[%emt 0:01:35]} Rf6 {[%emt 0:00:50]} 41. Qxg7+ {[%emt 0:30:26]} Kxg7 {[%emt 0:30:04]} 42. Bd4 {[%emt 0:00:22]} Bd6 {[%emt 0:00:56]} 43. Rb6 {[%emt 0:00:00]} Be7 {[%emt 0:00:00]} 44. Rxa6 {[%emt 0:00:00]} Kg6 {[%emt 0:00:00]} 45. Bxf6 {[%emt 0:00:00]} Bxf6 {[%emt 0:00:00]} 46. Rxa5 {[%emt 0:00:00]} Bd8 {[%emt 0:00:00]} 47. Re5 {[%emt 0:00:00]} 1-0

[Event "Karel Janecek Open 2024"]
[Site "Prague"]
[Date "2024.03.02"]
[Round "4.1"]
[White "Li, Di"]
[Black "Harikrishnan.A.Ra"]
[Result "1/2-1/2"]
[ECO "A11"]
[WhiteElo "2563"]
[BlackElo "2448"]
[Annotator "RC"]
[PlyCount "174"]
[EventDate "2024.02.22"]
[EventType "swiss"]
[EventCountry "CZE"]
[SourceTitle "playchess.com"]
[Source "ChessBase"]
[SourceQuality "1"]
[TimeControl "40/5400+30:1800+30"]

1. c4 {[%emt 0:00:05]} c6 {[%emt 0:00:19]} 2. Nf3 {[%emt 0:00:38]} Nf6 {[%emt 0:00:11]} 3. e3 {[%emt 0:00:41]} d5 {[%emt 0:00:37]} 4. Qc2 {[%emt 0:00:24]} g6 {[%emt 0:03:30]} 5. b3 {[%emt 0:00:05]} Bg7 {[%emt 0:00:06]} 6. Bb2 {[%emt 0:00:03]} O-O {[%emt 0:02:27]} 7. Be2 {[%emt 0:00:19]} dxc4 {[%emt 0:04:55]} 8. bxc4 {[%emt 0:03:39]} c5 {[%emt 0:00:13]} 9. Ne5 {[%emt 0:02:38]} Nbd7 {[%emt 0:04:49]} 10. O-O {[%emt 0:01:41]} Ne8 {[%emt 0:14:43]} 11. Nd3 {[%emt 0:05:14]} b6 {[%emt 0:06:42]} 12. Bxg7 {[%emt 0:03:58]} Nxg7 {[%emt 0:01:07]} 13. Nc3 {[%emt 0:00:10]} Bb7 {[%emt 0:01:24]} 14. a4 {[%emt 0:00:24]} Nf5 {[%emt 0:03:29]} 15. a5 {[%emt 0:04:03]} e6 {[%emt 0:01:26]} 16. f3 {[%emt 0:08:16]} Bc6 {[%emt 0:04:48]} 17. Ne4 {[%emt 0:07:42]} Qe7 {[%emt 0:06:55]} 18. Ndf2 {[%emt 0:08:24]} Nd6 {[%emt 0:02:11]} 19. Nxd6 {[%emt 0:00:27]} Qxd6 {[%emt 0:00:10]} 20. Ra3 {[%emt 0:01:58]} f5 {[%emt 0:04:05]} 21. Rfa1 {[%emt 0:00:27]} Rad8 {[%emt 0:01:26]} 22. Qb2 {[%emt 0:02:25]} Rb8 {[%emt 0:03:47]} 23. Qc3 {[%emt 0:04:21]} Rfd8 {[%emt 0:01:08]} 24. R1a2 {[%emt 0:03:04]} Qe7 {[%emt 0:05:24]} 25. axb6 {[%emt 0:08:10]} axb6 {[%emt 0:00:20]} 26. Ra7 {[%emt 0:00:22]} Ra8 {[%emt 0:00:57]} 27. Qa1 {[%emt 0:01:41]} Qf8 {[%emt 0:02:08]} 28. d4 {[%emt 0:17:32]} Rxa7 {[%emt 0:01:21]} 29. Rxa7 {[%emt 0:00:03]} Ra8 {[%emt 0:01:01]} 30. d5 {[%emt 0:02:37]} Qb8 {[%emt 0:08:12]} 31. Ra2 {[%emt 0:05:52]} Rxa2 {[%emt 0:00:56]} 32. Qxa2 {[%emt 0:00:01]} Qa8 {[%emt 0:00:18]} 33. Qxa8+ {[%emt 0:02:17]} Bxa8 {[%emt 0:00:04]} 34. dxe6 {[%emt 0:00:06]} Nf6 {[%emt 0:00:07]} 35. Nd1 {[%emt 0:03:30]} Kf8 {[%emt 0:02:09]} 36. Nc3 {[%emt 0:00:04]} Bc6 {[%emt 0:01:19]} 37. Bd1 {[%emt 0:01:13]} Ke7 {[%emt 0:01:37]} 38. Ba4 {[%emt 0:00:05]} Bb7 {[%emt 0:09:48]} 39. Bb5 {[%emt 0:00:15]} Bc8 {[%emt 0:03:13]} 40. Nd5+ {[%emt 0:00:56]} Kxe6 {[%emt 0:00:08]} 41. Nxb6 {[%emt 0:30:08]} Bb7 {[%emt 0:30:04]} 42. Na4 {[%emt 0:02:06]} Kd6 {[%emt 0:00:16]} 43. Nb2 {[%emt 0:00:25]} Ng8 {[%emt 0:00:00]} 44. Nd3 {[%emt 0:00:00]} Nh6 {[%emt 0:00:00]} 45. Kf2 {[%emt 0:00:00]} Nf7 {[%emt 0:00:00]} 46. h3 {[%emt 0:00:00]} Ne5 {[%emt 0:00:00]} 47. Nb2 {[%emt 0:00:00]} g5 {[%emt 0:00:00]} 48. f4 {[%emt 0:00:00]} gxf4 {[%emt 0:00:00]} 49. exf4 {[%emt 0:00:00]} Ng6 {[%emt 0:00:00]} 50. g3 {[%emt 0:00:00]} Be4 {[%emt 0:00:00]} 51. Nd1 {[%emt 0:00:00]} Nf8 {[%emt 0:00:00]} 52. Ne3 {[%emt 0:00:00]} Ne6 {[%emt 0:00:00]} 53. Ba4 {[%emt 0:00:00]} Ke7 {[%emt 0:00:00]} 54. Bd1 {[%emt 0:00:00]} Kf6 {[%emt 0:00:00]} 55. Ke1 {[%emt 0:00:00]} Nd4 {[%emt 0:00:00]} 56. Kd2 {[%emt 0:00:00]} Bf3 {[%emt 0:00:00]} 57. Bxf3 {[%emt 0:00:00]} Nxf3+ {[%emt 0:00:00]} 58. Kd3 {[%emt 0:00:00]} Nd4 {[%emt 0:06:39]} 59. g4 {[%emt 0:00:00]} Ne6 {[%emt 0:02:24]} 60. Nd5+ {[%emt 0:00:00]} Kg6 {[%emt 0:00:06]} 61. Ke3 {[%emt 0:00:00]} fxg4 {[%emt 0:00:21]} 62. hxg4 {[%emt 0:00:00]} Nd4 {[%emt 0:00:14]} 63. Ke4 {[%emt 0:00:00]} h5 {[%emt 0:00:25]} 64. gxh5+ {[%emt 0:00:00]} Kxh5 {[%emt 0:00:04]} 65. Ne3 {[%emt 0:01:48]} Kg6 {[%emt 0:01:12]} 66. Kd5 {[%emt 0:00:20]} Kf7 {[%emt 0:00:41]} 67. Ng4 {[%emt 0:05:56]} Ne6 {[%emt 0:00:52]} 68. Ne5+ {[%emt 0:01:07]} Kf6 {[%emt 0:00:17]} 69. Ke4 {[%emt 0:00:27]} Ke7 {[%emt 0:00:40]} 70. Nd3 {[%emt 0:01:26]} Kf6 {[%emt 0:00:07]} 71. Nf2 {[%emt 0:01:23]} Nd4 {[%emt 0:00:27]} 72. Ng4+ {[%emt 0:01:00]} Ke6 {[%emt 0:00:38]} 73. Ne3 {[%emt 0:00:07]} Kf6 {[%emt 0:01:03]} 74. Kd5 {[%emt 0:01:45]} Kf7 {[%emt 0:00:26]} 75. Ke5 {[%emt 0:00:24]} Nf3+ {[%emt 0:00:56]} 76. Kd6 {[%emt 0:00:32]} Nd4 {[%emt 0:00:11]} 77. Kd5 {[%emt 0:01:56]} Nb3 {[%emt 0:00:44]} 78. Ng4 {[%emt 0:00:45]} Kg6 {[%emt 0:00:38]} 79. Ne5+ {[%emt 0:00:57]} Kf5 {[%emt 0:00:11]} 80. Nd3 {[%emt 0:00:05]} Nd2 {[%emt 0:00:19]} 81. Kxc5 {[%emt 0:00:22]} Ke4 {[%emt 0:00:05]} 82. Kb4 {[%emt 0:01:52]} Kxd3 {[%emt 0:00:06]} 83. c5 {[%emt 0:00:03]} Kd4 {[%emt 0:01:14]} 84. c6 {[%emt 0:00:38]} Ne4 {[%emt 0:00:15]} 85. f5 {[%emt 0:00:25]} Ke5 {[%emt 0:00:50]} 86. c7 {[%emt 0:00:15]} Nd6 {[%emt 0:00:05]} 87. Kc5 {[%emt 0:00:16]} Nc8 {[%emt 0:00:04]} 1/2-1/2